lending/lending_fUSD_20251116
["ID","MTS","AMOUNT","RATE_DAILY","PERIOD"]
[394133033,1763311839496,-500.0,0.00022201,2]
[394133034,1763311839505,-500.0,0.00022201,2]
[394133035,1763311839516,-500.0,0.00022256,2]
[394133036,1763311839526,-500.0,0.00022256,2]
[394133037,1763311839536,-427.67445404,0.00022311,2]
[394133038,1763311839547,-500.0,0.00022311,2]
[394133039,1763311839556,-1000.0,0.00022324,2]
[394133040,1763311839566,-384.98560342,0.00022366,2]
[394133041,1763311839576,-296.415275,0.00022449,2]
[394133042,1763311839586,-235.180321,0.00022449,2]
[394133044,1763311839595,-579.194261,0.00022449,2]
[394133045,1763311839605,-252.419244,0.00022449,2]
[394133046,1763311839614,-453.740781,0.00022449,2]
[394133047,1763311839623,-216.77,0.00022775,2]
[394133048,1763311839632,-1318.0,0.00023274,2]
[394133049,1763311839642,-575.0,0.00023274,2]
[394133050,1763311839651,-3430.0,0.00023274,2]
[394133051,1763311839661,-718.722,0.00023274,2]
[394133052,1763311839671,-1599.0,0.00023274,2]
[394133053,1763311839680,-821.0,0.00023274,2]
[394133054,1763311839689,-793.0,0.00023274,2]
[394133055,1763311839699,-1275.0,0.00023274,2]
[394133056,1763311839710,-505.547,0.00023274,2]
[394133057,1763311839720,-1604.0,0.00023274,2]
[394133058,1763311839730,-6488.0,0.00023274,2]
[394133059,1763311839741,-500.0,0.00023314,2]
[394133060,1763311839751,-500.0,0.00023314,2]
[394133062,1763311839759,-500.0,0.00023314,2]
[394133063,1763311839769,-500.0,0.00023314,2]
[394133064,1763311839778,-500.0,0.00023314,2]
[394133065,1763311839788,-12751.14282116,0.00023368,2]
[394133066,1763311839797,-33856.38776707,0.00023485,2]
[394133067,1763311839807,-216.77,0.00023651,2]
[394133068,1763311839817,-550.22,0.00023671,2]
[394133069,1763311839827,-503.66483378,0.00023862,2]
[394133070,1763311839837,-653.85,0.00024003,2]
[394133071,1763311839847,-1609.39,0.00024225,30]
[394133072,1763311839857,-839.59637925,0.00024475,2]
[394133073,1763311839867,-1000.0,0.00024658,2]
[394133074,1763311839876,-500.0,0.00024773,2]
[394133075,1763311839885,-150.0,0.00024773,2]
[394133076,1763311839896,-150.41,0.0002479,2]
[394133077,1763311839906,-500.0,0.00024799,2]
[394133078,1763311839916,-500.0,0.00024799,2]
[394133079,1763311839925,-409.71916419,0.00024799,2]
[394133080,1763311839935,-369.12067655,0.00024799,2]
[394133081,1763311839944,-221.873878,0.00024799,2]
[394133082,1763311839957,-500.0,0.00024799,2]
[394133083,1763311839967,-522.45581872,0.00024799,2]
[394133084,1763311839977,-296.415275,0.000248,3]
[394133085,1763311839988,-235.180321,0.000248,3]
[394133086,1763311839998,-579.194261,0.000248,3]
[394133087,1763311840009,-252.419244,0.000248,3]
[394133088,1763311840018,-453.740781,0.000248,3]
[394133089,1763311840028,-604767.334378,0.000248,3]
[394133090,1763311840039,-946.63821582,0.000248,2]
[394133091,1763311840048,-479.06402154,0.000248,3]
[394133092,1763311840058,-150.41,0.0002489,2]
[394133093,1763311840070,-150.41,0.0002489,2]
[394133094,1763311840079,-296.415275,0.000249,7]
[394133095,1763311840088,-235.180321,0.000249,7]
[394133096,1763311840098,-579.194261,0.000249,7]
[394133097,1763311840108,-252.419244,0.000249,7]
[394133098,1763311840118,-453.740781,0.000249,7]
[394133099,1763311840128,-612646.6424,0.000249,3]
[394133100,1763311840138,-287.8788222,0.00024911,2]
[394133101,1763311840148,-416.71,0.00024986,2]
[394133102,1763311840157,-151.0,0.00025,2]
[394133103,1763311840167,-296.415275,0.0002525,4]
[394133105,1763311840177,-235.180321,0.0002525,4]
[394133106,1763311840186,-579.194261,0.0002525,4]
[394133107,1763311840195,-252.419244,0.0002525,4]
[394133108,1763311840206,-453.740781,0.0002525,4]
[394133109,1763311840219,-1000.0,0.00025321,2]
[394133111,1763311840229,-250.0,0.00025321,2]
[394133112,1763311840238,-1004.93531947,0.00025477,5]
[394133113,1763311840247,-1105.45847593,0.00025477,5]
[394133114,1763311840256,-1015.34538271,0.00025477,5]
[394133115,1763311840266,-1112.83293293,0.00025477,5]
[394133116,1763311840275,-1094.08037333,0.00025477,5]
[394133117,1763311840285,-1122.69652436,0.00025477,5]
[394133118,1763311840294,-941.20062228,0.00025477,5]
[394133119,1763311840303,-1034.26041629,0.00025477,5]
[394133120,1763311840313,-1223.4570818,0.00025477,5]
[394133121,1763311840322,-1143.33140689,0.00025477,5]
[394133122,1763311840331,-971.13664763,0.00025477,5]
[394133123,1763311840340,-479.06402154,0.000255,3]
[394133124,1763311840350,-7195.0,0.00025532,2]
[394133125,1763311840360,-12751.14282116,0.0002565,2]
[394133127,1763311840369,-169.1355734,0.000257,2]
[394133130,1763311840379,-27165.89419946,0.00025747,2]
[394133153,1763311840766,-150.0,0.00023274,2]
[394133154,1763311840776,-6690.49356761,0.00025747,2]
[394133155,1763311840785,-151.0,0.000258,2]
[394133156,1763311840988,-352.81716112,0.00025868,2]
[394133157,1763311841011,-350.0,0.00025868,2]
[394133158,1763311841022,-1000.0,0.00026027,2]
[394133159,1763311841032,-1324.84663078,0.00026175,2]
[394133160,1763311841040,-755.46901946,0.00026274,2]
[394133177,1763311843238,-562.53098054,0.00026274,2]
[394133178,1763311843250,-575.0,0.00026274,2]
[394133179,1763311843262,-3430.0,0.00026274,2]
[394133180,1763311843273,-608.0,0.00026274,2]
[394133181,1763311843283,-1599.0,0.00026274,2]
[394133182,1763311843292,-55.95209096,0.00026274,2]
[394133183,1763311843337,-765.04790904,0.00026274,2]
[394133184,1763311843347,-793.0,0.00026274,2]
[394133185,1763311843357,-1275.0,0.00026274,2]
[394133186,1763311843367,-1604.0,0.00026274,2]
[394133187,1763311843376,-6488.0,0.00026274,2]
[394133188,1763311843385,-150.0,0.00026274,2]
[394133189,1763311843395,-1000.0,0.00026301,2]
[394133190,1763311843403,-553.97504339,0.00026416,2]
[394133191,1763311843413,-1000.0,0.00026575,2]
[394133192,1763311843424,-296.415275,0.00026758,3]
[394133193,1763311843433,-235.180321,0.00026758,3]
[394133194,1763311843442,-579.194261,0.00026758,3]
[394133195,1763311843451,-252.419244,0.00026758,3]
[394133196,1763311843463,-453.740781,0.00026758,3]
[394133197,1763311843472,-177.32,0.00026795,2]
[394133198,1763311843482,-1000.0,0.00026849,2]
[394133199,1763311843491,-296.415275,0.00026885,7]
[394133200,1763311843501,-235.180321,0.00026885,7]
[394133201,1763311843510,-579.194261,0.00026885,7]
[394133202,1763311843519,-252.419244,0.00026885,7]
[394133203,1763311843529,-453.740781,0.00026885,7]
[394133204,1763311843539,-296.415275,0.00026898,2]
[394133205,1763311843548,-235.180321,0.00026898,2]
[394133206,1763311843557,-579.194261,0.00026898,2]
[394133207,1763311843566,-252.419244,0.00026898,2]
[394133208,1763311843575,-453.740781,0.00026898,2]
[394133209,1763311843585,-107.74326141,0.00026901,2]
[394133210,1763311843601,-42.25673859,0.00026901,2]
[394133211,1763311843610,-150.0,0.00026901,2]
[394133212,1763311843621,-150.0,0.00026901,2]
[394133213,1763311843630,-20.348627,0.00026901,2]
[394133229,1763311845971,-951.7866438,0.00025644,2]
[394133230,1763311846182,-148.6533562,0.00025644,2]
[394133231,1763311846193,-129.651373,0.00026901,2]
[394133232,1763311846203,-150.0,0.00026901,2]
[394133233,1763311846214,-150.0,0.00026901,2]
[394133234,1763311846224,-150.0,0.00026901,2]
[394133235,1763311846233,-150.0,0.00026901,2]
[394133236,1763311846243,-150.0,0.00026901,2]
[394133237,1763311846252,-264.019,0.00026901,2]
[394133238,1763311846262,-1000.0,0.00027123,2]
[394133239,1763311846271,-70.47344,0.00027286,2]
[394133240,1763311846283,-769.12293925,0.00027286,2]
[394133241,1763311846292,-56.97090467,0.000273,2]
[394133242,1763311846303,-143.02909533,0.000273,2]
[394133243,1763311846313,-147.07090467,0.00027369,2]
[394133244,1763311846325,-32.68541875,0.00027369,2]
[394133245,1763311846335,-150.0,0.00027397,2]
[394133246,1763311846345,-249.86886028,0.00027397,2]
[394133247,1763311846357,-292.41249767,0.00027397,2]
[394133249,1763311846416,-663.7042298,0.00027397,2]
[394133251,1763311846431,-291.80994206,0.00027397,2]
[394133254,1763311846445,-3316.91810451,0.00027397,2]
[394133255,1763311846454,-150.0,0.00027397,2]
[394133256,1763311846470,-1533.0911595,0.00027397,2]
[394133293,1763312036954,150.0,0.00024517,120]
[394133294,1763312039649,677.44676364,0.00027397,120]
[394133295,1763312116786,708.0,0.00025573,120]
[394133296,1763312118228,708.0,0.00026851,120]
[394133297,1763312119510,708.0,0.00028194,120]
[394133298,1763312120860,708.0,0.00029604,120]
[394133299,1763312162885,-1000.0,0.00016597,2]
[394133300,1763312162907,-1000.0,0.00016687,2]
[394133301,1763312162928,-2500.0,0.00016687,2]
[394133302,1763312162949,-1363.47973097,0.00016695,2]
[394133303,1763312162972,-300.0,0.00016695,2]
[394133304,1763312162994,-300.0,0.00016695,2]
[394133305,1763312163016,-361.0,0.00016695,2]
[394133306,1763312163038,-3950.15026903,0.00016695,2]
[394133307,1763312407536,354.0,0.00026581,120]
[394133308,1763312408875,354.0,0.0002791,120]
[394133309,1763312410234,354.0,0.00029305,120]
[394133310,1763312413830,-1000.0,0.00016597,2]
[394133311,1763312413852,-2500.0,0.00016597,2]
[394133312,1763312413872,-500.0,0.00016597,2]
[394133313,1763312429442,-1200.0,0.00016693,2]
[394133314,1763312429468,-800.0,0.00016694,2]
[394133315,1763312473737,-2214.277,0.00016597,2]
[394133316,1763312487656,-400.0,0.00016694,2]
[394133317,1763312487682,-300.0,0.00016694,2]
[394133318,1763312487707,-300.0,0.00016694,2]
[394133319,1763312487729,-250.0,0.00016695,2]
[394133320,1763312487754,-750.0,0.00016695,2]
[394133321,1763312489983,-2000.0,0.00016695,2]
[394133322,1763312491920,-2000.0,0.00016695,2]
[394133323,1763312494028,-2000.0,0.00016695,2]
[394133324,1763312511753,522.45581872,0.0002926,120]
[394133325,1763312519463,-1098.121,0.00016363,2]
[394133326,1763312535008,-501.92101644,0.00016673,2]
[394133327,1763312535029,-200.0,0.00016687,2]
[394133328,1763312535050,-200.0,0.00016687,2]
[394133329,1763312535073,-151.0,0.00016687,2]
[394133330,1763312535095,-151.0,0.00016687,2]
[394133331,1763312535120,-151.0,0.00016687,2]
[394133332,1763312535142,-151.0,0.00016687,2]
[394133333,1763312535164,-151.0,0.00016687,2]
[394133334,1763312535186,-151.0,0.00016687,2]
[394133335,1763312535206,-151.0,0.00016687,2]
[394133336,1763312535229,-41.07898356,0.00016687,2]
[394133337,1763312537908,-109.92101644,0.00016687,2]
[394133338,1763312537933,-151.0,0.00016687,2]
[394133339,1763312537955,-151.0,0.00016687,2]
[394133340,1763312537977,-151.0,0.00016687,2]
[394133341,1763312537998,-151.0,0.00016687,2]
[394133342,1763312538021,-151.0,0.00016687,2]
[394133343,1763312538042,-151.0,0.00016687,2]
[394133344,1763312538363,-151.0,0.00016687,2]
[394133345,1763312538386,-151.0,0.00016687,2]
[394133346,1763312538409,-151.0,0.00016687,2]
[394133347,1763312538431,-151.0,0.00016687,2]
[394133348,1763312538453,-151.0,0.00016687,2]
[394133349,1763312538474,-151.0,0.00016687,2]
[394133350,1763312538496,-78.07898356,0.00016687,2]
[394133351,1763312541883,-72.92101644,0.00016687,2]
[394133352,1763312541906,-151.0,0.00016687,2]
[394133353,1763312541931,-151.0,0.00016687,2]
[394133354,1763312541955,-151.0,0.00016687,2]
[394133355,1763312541980,-151.0,0.00016687,2]
[394133356,1763312542002,-151.0,0.00016687,2]
[394133357,1763312542026,-151.0,0.00016687,2]
[394133358,1763312542047,-151.0,0.00016687,2]
[394133359,1763312542070,-151.0,0.00016687,2]
[394133360,1763312542092,-151.0,0.00016687,2]
[394133361,1763312542116,-151.0,0.00016687,2]
[394133362,1763312542137,-151.0,0.00016687,2]
[394133363,1763312542159,-151.0,0.00016687,2]
[394133364,1763312542180,-115.07898356,0.00016687,2]
[394133365,1763312546075,-35.92101644,0.00016687,2]
[394133366,1763312546096,-151.0,0.00016687,2]
[394133367,1763312546117,-151.0,0.00016687,2]
[394133368,1763312546139,-151.0,0.00016687,2]
[394133369,1763312546160,-151.0,0.00016687,2]
[394133370,1763312546182,-151.0,0.00016687,2]
[394133371,1763312546204,-151.0,0.00016687,2]
[394133372,1763312546225,-200.0,0.00016687,2]
[394133373,1763312546249,-151.0,0.00016687,2]
[394133374,1763312546271,-151.0,0.00016687,2]
[394133375,1763312546292,-151.0,0.00016687,2]
[394133376,1763312546316,-151.0,0.00016687,2]
[394133377,1763312546337,-254.07898356,0.00016695,2]
[394133378,1763312550387,-151.0,0.00016687,2]
[394133379,1763312550409,-151.0,0.00016687,2]
[394133380,1763312550430,-151.0,0.00016687,2]
[394133381,1763312550452,-151.0,0.00016687,2]
[394133382,1763312550474,-151.0,0.00016687,2]
[394133383,1763312550497,-151.0,0.00016687,2]
[394133384,1763312550520,-151.0,0.00016687,2]
[394133385,1763312550544,-45.92101644,0.00016695,2]
[394133386,1763312550575,-897.07898356,0.00016696,2]
[394133387,1763312674566,-1000.0,0.00016597,2]
[394133389,1763312684896,166.0,0.00026937,120]
[394133390,1763312685333,166.0,0.00026927,120]
[394133391,1763312686143,166.0,0.00026917,120]
[394133392,1763312687987,-957.0,0.00016695,2]
[394133393,1763312688009,-43.0,0.00016696,2]
[394133394,1763312690009,-164.08145927,0.00016696,2]
[394133395,1763312690033,-500.0,0.00016696,2]
[394133396,1763312690060,-335.91854073,0.00016696,2]
[394133397,1763312691725,-164.08145927,0.00016696,2]
[394133398,1763312691750,-500.0,0.00016696,2]
[394133399,1763312691775,-335.91854073,0.00016696,2]
[394133441,1763312707485,177.0,0.00028585,120]
[394133442,1763312708922,177.0,0.00030015,120]
[394133443,1763312773401,-1000.0,0.00016597,2]
[394133444,1763312773426,-1200.0,0.00016695,2]
[394133445,1763312773450,-228.0,0.00016695,2]
[394133446,1763312773475,-300.0,0.00016695,2]
[394133447,1763312773503,-164.08145927,0.00016696,2]
[394133448,1763312773532,-500.0,0.00016696,2]
[394133449,1763312773560,-500.0,0.00016696,2]
[394133450,1763312773587,-500.0,0.00016696,2]
[394133451,1763312773615,-500.0,0.00016696,2]
[394133452,1763312773641,-500.0,0.00016696,2]
[394133453,1763312773669,-500.0,0.00016696,2]
[394133454,1763312773695,-500.0,0.00016696,2]
[394133455,1763312773942,-500.0,0.00016696,2]
[394133456,1763312773972,-500.0,0.00016696,2]
[394133457,1763312774000,-500.0,0.00016696,2]
[394133458,1763312774027,-500.0,0.00016696,2]
[394133459,1763312774053,-500.0,0.00016696,2]
[394133460,1763312774079,-278.51229929,0.00016696,2]
[394133461,1763312774107,-500.0,0.00016696,2]
[394133462,1763312774134,-500.0,0.00016696,2]
[394133463,1763312774160,-500.0,0.00016696,2]
[394133464,1763312774187,-500.0,0.00016696,2]
[394133465,1763312774214,-500.0,0.00016696,2]
[394133466,1763312774241,-500.0,0.00016696,2]
[394133467,1763312774267,-500.0,0.00016696,2]
[394133468,1763312774296,-500.0,0.00016696,2]
[394133469,1763312774323,-500.0,0.00016696,2]
[394133470,1763312774350,-500.0,0.00016696,2]
[394133471,1763312774379,-500.0,0.00016696,2]
[394133472,1763312774406,-500.0,0.00016696,2]
[394133473,1763312774430,-314.52381947,0.00016696,2]
[394133474,1763312774454,-227.19779058,0.00016696,2]
[394133475,1763312774481,-500.0,0.00016696,2]
[394133476,1763312774508,-500.0,0.00016696,2]
[394133477,1763312774535,-500.0,0.00016696,2]
[394133478,1763312774562,-500.0,0.00016696,2]
[394133479,1763312774588,-500.0,0.00016696,2]
[394133480,1763312774615,-500.0,0.00016696,2]
[394133481,1763312774643,-500.0,0.00016696,2]
[394133482,1763312774671,-500.0,0.00016696,2]
[394133483,1763312774699,-500.0,0.00016696,2]
[394133484,1763312774727,-500.0,0.00016696,2]
[394133485,1763312774754,-500.0,0.00016696,2]
[394133486,1763312774779,-500.0,0.00016696,2]
[394133487,1763312774803,-500.0,0.00016696,2]
[394133488,1763312774826,-500.0,0.00016696,2]
[394133489,1763312774849,-357.9463874,0.00016696,2]
[394133490,1763312774873,-500.0,0.00016696,2]
[394133491,1763312774897,-500.0,0.00016696,2]
[394133492,1763312774921,-500.0,0.00016696,2]
[394133493,1763312774944,-500.0,0.00016696,2]
[394133494,1763312774969,-500.0,0.00016696,2]
[394133495,1763312774992,-500.0,0.00016696,2]
[394133496,1763312775017,-3929.73824399,0.00016696,2]
[394133497,1763312864969,170.0,8.3e-07,2]
[394133498,1763312953599,150.0,0.00030014,120]
[394133499,1763313006668,177.0,0.00028792,120]
[394133506,1763313031963,-270.946,0.00016597,2]
[394133507,1763313031972,-1000.0,0.00016597,2]
[394133508,1763313031982,-160.0,0.00016687,2]
[394133509,1763313031991,-151.0,0.00016687,2]
[394133510,1763313032001,-200.0,0.00016687,2]
[394133511,1763313032011,-151.0,0.00016687,2]
[394133512,1763313032020,-151.0,0.00016687,2]
[394133513,1763313032030,-151.0,0.00016687,2]
[394133514,1763313032040,-151.0,0.00016687,2]
[394133515,1763313032049,-151.0,0.00016687,2]
[394133516,1763313032059,-200.0,0.00016687,2]
[394133517,1763313032068,-151.0,0.00016687,2]
[394133518,1763313032078,-151.0,0.00016687,2]
[394133519,1763313032091,-151.0,0.00016687,2]
[394133520,1763313032100,-200.0,0.00016687,2]
[394133521,1763313032109,-151.0,0.00016687,2]
[394133522,1763313032118,-151.0,0.00016687,2]
[394133523,1763313032127,-151.0,0.00016687,2]
[394133524,1763313032137,-151.0,0.00016687,2]
[394133525,1763313032146,-151.0,0.00016687,2]
[394133526,1763313032155,-151.0,0.00016687,2]
[394133527,1763313032164,-151.0,0.00016687,2]
[394133528,1763313032174,-151.0,0.00016687,2]
[394133529,1763313032183,-151.0,0.00016687,2]
[394133531,1763313032192,-151.0,0.00016687,2]
[394133533,1763313032201,-151.0,0.00016687,2]
[394133535,1763313032210,-151.0,0.00016687,2]
[394133536,1763313032220,-244.59265817,0.00016687,2]
[394133537,1763313032231,-151.0,0.00016687,2]
[394133538,1763313032240,-151.0,0.00016687,2]
[394133539,1763313032250,-151.0,0.00016687,2]
[394133540,1763313032259,-151.0,0.00016687,2]
[394133541,1763313032268,-151.0,0.00016687,2]
[394133542,1763313032278,-151.0,0.00016687,2]
[394133543,1763313032287,-151.0,0.00016687,2]
[394133544,1763313032297,-151.0,0.00016687,2]
[394133545,1763313032306,-151.0,0.00016687,2]
[394133546,1763313032315,-151.0,0.00016687,2]
[394133547,1763313032325,-151.0,0.00016687,2]
[394133548,1763313032335,-151.0,0.00016687,2]
[394133549,1763313032345,-985.08,0.00016687,2]
[394133550,1763313032354,-985.08,0.00016687,2]
[394133551,1763313032367,-985.08,0.00016687,2]
[394133552,1763313032377,-985.08,0.00016687,2]
[394133553,1763313032387,-985.08,0.00016687,2]
[394133554,1763313032396,-430.37,0.00016687,2]
[394133555,1763313032407,-500.0,0.00016696,2]
[394133556,1763313032416,-500.0,0.00016696,2]
[394133557,1763313032426,-500.0,0.00016696,2]
[394133558,1763313032435,-500.0,0.00016696,2]
[394133559,1763313032445,-500.0,0.00016696,2]
[394133560,1763313032455,-500.0,0.00016696,2]
[394133561,1763313032465,-308.6753912,0.00016696,2]
[394133562,1763313032475,-500.0,0.00016696,2]
[394133563,1763313032485,-500.0,0.00016696,2]
[394133564,1763313032494,-500.0,0.00016696,2]
[394133565,1763313032699,-29682.76013907,0.00016696,2]
[394133566,1763313032716,-382.2506638,0.00016696,2]
[394133567,1763313032726,-11721.19027675,0.00016696,2]
[394133568,1763313032735,-259.09093998,0.00016696,2]
[394133569,1763313032745,-22909.7955017,0.00016696,2]
[394133570,1763313032755,-20825.04879209,0.00016697,2]
[394133571,1763313032771,-967.72769933,0.00016697,2]
[394133572,1763313032782,-3239.48877214,0.00016697,2]
[394133573,1763313032794,-776.15703811,0.00016697,2]
[394133574,1763313032805,-1621.73849155,0.00016697,2]
[394133575,1763313033300,-2255.24874802,0.00016697,2]
[394133576,1763313033314,-1305.0,0.00016697,2]
[394133577,1763313033325,-1016.015,0.00016697,2]
[394133578,1763313033336,-7044.19999998,0.00016697,2]
[394133579,1763313033378,-2235.91638272,0.00016697,2]
[394133588,1763313037948,-755.47207767,0.00016697,2]
[394133589,1763313037959,-446.50000004,0.00016697,2]
[394133590,1763313037971,-4100.14377556,0.00016697,2]
[394133591,1763313037986,-824.0894058,0.00016697,2]
[394133592,1763313038004,-1928.80999808,0.00016697,2]
[394133593,1763313038018,-285.02815616,0.00016697,2]
[394133594,1763313038030,-710373.41566275,0.00016697,2]
[394133595,1763313038040,-500.0,0.00016796,2]
[394133596,1763313038050,-500.0,0.00016796,2]
[394133597,1763313038060,-500.0,0.00016796,2]
[394133598,1763313038070,-296.28295864,0.00016796,2]
[394133599,1763313038080,-500.0,0.00016796,2]
[394133600,1763313038090,-500.0,0.00016796,2]
[394133601,1763313038099,-515.01217463,0.00016796,2]
[394133602,1763313038108,-430.37,0.00016961,2]
[394133603,1763313038119,-250.0,0.00017,2]
[394133604,1763313038128,-200.0,0.00017235,2]
[394133605,1763313038138,-200.0,0.00017235,2]
[394133606,1763313038148,-430.37,0.00017235,2]
[394133607,1763313038157,-430.37,0.00017509,2]
[394133608,1763313038167,-200.0,0.00017783,2]
[394133609,1763313038180,-200.0,0.00017783,2]
[394133610,1763313038189,-430.4,0.00017783,2]
[394133611,1763313038199,-633.94670374,0.000179,2]
[394133612,1763313038209,-329.65,0.00018,2]
[394133614,1763313038218,-4414.85,0.00018,2]
[394133616,1763313038227,-999.99,0.00018,2]
[394133618,1763313038237,-9215.03,0.00018,5]
[394133620,1763313038247,-1223.88,0.00018,2]
[394133621,1763313038257,-9999.99,0.00018,2]
[394133623,1763313038267,-1928.81,0.00018,2]
[394133625,1763313038276,-150.99,0.00018,2]
[394133626,1763313038285,-250.0,0.00018257,2]
[394133627,1763313038294,-200.0,0.00018331,2]
[394133628,1763313038303,-200.0,0.00018331,2]
[394133629,1763313038313,-11440.19511934,0.0001839,2]
[394133630,1763313038323,-29682.76013906,0.00018726,2]
[394133631,1763313038333,-11721.1902767,0.00018726,2]
[394133632,1763313038343,-200.0,0.00018879,2]
[394133633,1763313038353,-200.0,0.00018879,2]
[394133634,1763313038363,-161.38697369,0.00019,2]
[394133635,1763313038384,-311.56154105,0.00019,2]
[394133636,1763313038397,-151.0,0.00019178,2]
[394133637,1763313038407,-207.4,0.00019426,2]
[394133638,1763313038416,-200.0,0.00019427,2]
[394133639,1763313038427,-200.0,0.00019427,2]
[394133640,1763313038437,-259.09093998,0.00019434,2]
[394133641,1763313038447,-150.0,0.00019446,2]
[394133642,1763313038456,-156.587,0.00019726,2]
[394133643,1763313038466,-1000.0,0.00019733,2]
[394133644,1763313038477,-200.0,0.00019975,2]
[394133645,1763313038488,-200.0,0.00019975,2]
[394133646,1763313038498,-1363.47973093,0.00020216,2]
[394133647,1763313038508,-162.380719,0.00020274,2]
[394133648,1763313038518,-5111.8663392,0.00020298,2]
[394133649,1763313038528,-203.17721759,0.00020523,2]
[394133650,1763313038538,-202.58152099,0.00020523,2]
[394133651,1763313038547,-215.39383382,0.000207,2]
[394133652,1763313038557,-200.0,0.00020707,2]
[394133653,1763313038567,-740.88,0.00020721,2]
[394133654,1763313038577,-29682.76013906,0.00020756,2]
[394133655,1763313038587,-11721.1902767,0.00020756,2]
[394133656,1763313038596,-168.3888056,0.00020822,2]
[394133657,1763313038606,-261.63,0.00021058,2]
[394133658,1763313038616,-1140.6115549,0.00021101,2]
[394133659,1763313038626,-1824.22,0.00021106,2]
[394133660,1763313038636,-150.0,0.00021133,2]
[394133661,1763313038646,-411.27184723,0.00021209,2]
[394133662,1763313038655,-633.94670372,0.00021337,2]
[394133663,1763313038666,-174.61919141,0.0002137,2]
[394133664,1763313038676,-915.84,0.000216,7]
[394133665,1763313038687,-5000.0,0.00021918,2]
[394133666,1763313038697,-181.08010149,0.00021918,2]
[394133667,1763313038706,-479.06402154,0.0002208,2]
[394133668,1763313038716,-215.0738,0.00022165,2]
[394133669,1763313038726,-347.64330208,0.00022186,2]
[394133670,1763313038736,-250.0,0.00022186,2]
[394133671,1763313038749,-250.0,0.00022186,2]
[394133672,1763313038761,-250.0,0.00022186,2]
[394133673,1763313038771,-250.0,0.00022186,2]
[394133674,1763313038781,-250.0,0.00022186,2]
[394133675,1763313038791,-337.84606576,0.00022186,2]
[394133676,1763313038800,-250.0,0.00022186,2]
[394133677,1763313038810,-500.0,0.00022186,2]
[394133678,1763313038819,-250.0,0.00022186,2]
[394133679,1763313038828,-500.0,0.00022186,2]
[394133680,1763313038838,-250.0,0.00022186,2]
[394133681,1763313038848,-500.0,0.00022186,2]
[394133682,1763313038857,-250.0,0.00022186,2]
[394133683,1763313038866,-500.0,0.00022186,2]
[394133684,1763313038876,-250.0,0.00022186,2]
[394133685,1763313038886,-568.03051561,0.00022186,2]
[394133686,1763313038895,-250.0,0.00022186,2]
[394133687,1763313038904,-151.0,0.00022186,2]
[394133688,1763313038913,-500.0,0.00022186,2]
[394133689,1763313038923,-500.0,0.00022186,2]
[394133690,1763313038933,-500.0,0.00022186,2]
[394133691,1763313038945,-500.0,0.00022186,2]
[394133692,1763313038954,-500.0,0.00022186,2]
[394133693,1763313038964,-500.0,0.00022186,2]
[394133694,1763313038974,-500.0,0.00022186,2]
[394133695,1763313038984,-250.0,0.00022186,2]
[394133696,1763313038993,-500.0,0.00022186,2]
[394133697,1763313039003,-250.0,0.00022186,2]